Cogmind - Beta 16.1 @@@ ROGUE MODE // 2026.03.13 @ 19:08:34 Player: kim.jet.wav Result: Self-destructed Performance ------------- Evolutions (3) 1500 Regions Visited (4) 800 Robots Destroyed (14) 70 Value Destroyed (389) 389 Prototype IDs (1) 20 Alien Tech Used (0) 0 Bonus (0) 0 TOTAL SCORE: 2779 Bonus ------- None Cogmind --------- Core Integrity 674/700 Matter 214/300 Energy 11/150 System Corruption 0% Temperature Cool (38) Movement Rolling (100) Location -7/Factory Parts ------- > --- POWER (2) -------- Micro Nuclear Core > --- PROPULSION (4) --- Armored Huge Wheel > --- UTILITY (3) ------ Advanced Weight Redist. System Advanced ECM Suite > --- WEAPON (4) ------- Cooled Pulse Rifle Improved EM Pulse Cannon > --- INVENTORY (5) ---- Light Ion Engine Recalibrator Peak State ------------ > --- POWER ------------ Micro Nuclear Core Micro Nuclear Core > --- PROPULSION ------- Armored Huge Wheel > --- UTILITY ---------- Advanced Weight Redist. System Advanced ECM Suite > --- WEAPON ----------- Cooled Pulse Rifle Improved EM Pulse Cannon > --- INVENTORY -------- Light Ion Engine Recalibrator [Rating: 32] Favorites ----------- Power Ion Engine Engine Ion Engine Power Core Micro Nuclear Core Propulsion Aluminum Leg Leg Aluminum Leg Wheel Armored Huge Wheel Utility Small Storage Unit Device Advanced ECM Suite Storage Small Storage Unit Hackware Makeshift Hacking Suite Weapon EM Pulse Gun Energy Gun EM Pulse Gun Energy Cannon Improved EM Pulse Cannon Ballistic Gun Light Assault Rifle Ballistic Cannon Battle Cannon Build | -11 -10 -10 -9 -7 ------- Run | Yrd Mat Sub Rec Fac Slots Evolved 6 | . . . . 6 Power 1 | . . . . 1 Propulsion 2 | . . . . 2 Utility 1 | . . . . 1 Weapon 2 | . . . . 2 Parts Attached 23 | 7 . 8 . 8 Power 7 | 1 . 3 . 3 Engine 5 | 1 . 3 . 1 Core 2 | . . . . 2 Reactor . | . . . . . Propulsion 4 | 2 . 1 . 1 Treads . | . . . . . Leg 3 | 2 . 1 . . Wheel 1 | . . . . 1 Hover . | . . . . . Flight . | . . . . . Utility 5 | 2 . 1 . 2 Device 3 | 1 . . . 2 Storage 1 | 1 . . . . Processor . | . . . . . Hackware 1 | . . 1 . . Protection . | . . . . . Artifact . | . . . . . Weapon 7 | 2 . 3 . 2 Energy Gun 4 | 2 . 1 . 1 Energy Cannon 1 | . . . . 1 Ballistic Gun 1 | . . 1 . . Ballistic Cannon 1 | . . 1 . . Launcher . | . . . . . Special Weapon . | . . . . . Impact Weapon . | . . . . . Slashing Weapon . | . . . . . Piercing Weapon . | . . . . . Special Melee Weapon . | . . . . . Unidentified Prototypes 1 | . . . . 1 Parts Lost 10 | . . 9 . 1 Power 3 | . . 2 . 1 Propulsion 2 | . . 2 . . Utility 1 | . . 1 . . Weapon 4 | . . 4 . . Highest Loss Streak 6 | . . 6 . 1 To Critical Strikes . | . . . . . Average Backups 3 | . 2 5 2 . Power . | . 1 1 . . Propulsion 1 | . . 1 . . Utility 1 | . . 2 . . Weapon . | . . . . . Tool/Special . | . . . . . Unused Backups 4 | . . . 3 1 Power . | . . . . . Propulsion 1 | . . . 1 . Utility 3 | . . . 2 1 Weapon . | . . . . . Tool/Special . | . . . . . Average Slot Usage (%) 72 | . 100 90 18 28 Engine 10 | . 14 13 . 2 Leg 19 | . 28 27 . . Wheel 1 | . . . . 5 Device 3 | . 14 1 . 6 Storage 10 | . 14 14 6 . Hackware 5 | . . 8 6 . Energy Gun 14 | . 28 18 . 5 Ballistic Cannon 3 | . . 6 . . Peak Build Rating 32 | 7 7 14 6 32 Average Rating 10 | 5 7 10 2 17 On Entrance 4 | . 7 7 6 . Avg Prop Armor Cover (%) 13 | 13 . . . 13 Naked Turns 168 | . . . 100 68 Heaviest Build 26 | 15 15 16 6 26 Greatest Support 28 | 20 20 20 3 28 Greatest Overweight (x) 7 | 1 . 1 1 7 Average Overweight (x) . | . . . . . Largest Inventory Capacity 8 | 8 8 8 8 5 Average Capacity 7 | 7 8 8 6 5 Most Carried 7 | 1 5 7 5 2 Average Carried 3 | . 2 5 2 . Final Capacity 8 | 8 8 8 5 5 Final Carried 5 | 1 5 5 . 2 Class Distribution -------------------- 100% | Mutant Dominant Class ---------------- Mutant | -10/Materials Mutant | -10/Subcaves Mutant | -9/Recycling Mutant | -7/Factory Resources | -11 -10 -10 -9 -7 ----------- Run | Yrd Mat Sub Rec Fac Matter Collected 509 | 270 . 215 . 24 Remotely . | . . . . . Salvage Created 490 | 30 182 254 . 24 Parts 37 | 3 10 21 . 3 Haulers Intercepted 1 | . 1 . . . Recyclers Shooed . | . . . . . Parts Field Recycled . | . . . . . Retrieved Matter . | . . . . . Parts Self-Destructed 11 | . . 11 . . Prevented . | . . . . . Parts Restored . | . . . . . Kills | -11 -10 -10 -9 -7 ------- Run | Yrd Mat Sub Rec Fac Combat Hostiles Destroyed 10 | . 3 7 . . Guns 5 | . 3 2 . . Cannons 4 | . . 4 . . AOE 1 | . . 1 . . Classes Destroyed 7 | 1 3 3 . . Tunneler 2 | 1 . . . 1 Hauler 1 | . 1 . . . Operator 1 | . 1 . . . Swarmer 1 | . . 1 . . Grunt 3 | . 3 . . . Sentry 1 | . . 1 . . Subdweller 5 | . . 5 . . Best Kill Streak 2 | 1 2 2 . 1 Combat Bots Only 2 | . 2 2 . . Max Kills in Single Turn 1 | 1 1 1 . 1 Gunslinging . | . . . . . Exploded 1 | . . 1 . . Melee . | . . . . . Uniques/NPCs Destroyed . | . . . . . Combat | -11 -10 -10 -9 -7 -------- Run | Yrd Mat Sub Rec Fac Hostile Shots Fired 212 | . 7 132 4 69 Missed 83 | . . 54 4 25 Hits 129 | . 7 78 . 44 Projectile 129 | . 7 78 . 44 Critical Strikes 2 | . . 2 . . Damage Taken 1346 | . 99 907 . 340 Core 263 | . 12 225 . 26 Absorbed by Shields . | . . . . . Core Remaining (%) 52 | 100 . . 5 . Volleys Fired 64 | 3 11 42 . 8 Largest 2 | 2 2 2 . 2 Hottest 90 | 90 90 90 . 89 Shots Fired 104 | 6 22 64 . 12 Gun 63 | 6 22 27 . 8 Cannon 41 | . . 37 . 4 Launcher . | . . . . . Special . | . . . . . Kinetic 37 | . . 37 . . Thermal 22 | 3 11 . . 8 Explosive . | . . . . . Electromagnetic 45 | 3 11 27 . 4 Robot Hit Streak 9 | 2 8 9 . 5 Robot Miss Streak 4 | 1 1 4 . 1 Penetration Max . | . . . . . Secondary Targets . | . . . . . Shots Hit Robots 57 | 4 18 25 . 10 Core Hits 25 | 1 9 12 . 3 Critical Kills . | . . . . . Critical Parts Destroyed . | . . . . . Critical Strikes 3 | 1 . 2 . . Burn 1 | 1 . . . . Blast 2 | . . 2 . . Melee Attacks . | . . . . . Impact . | . . . . . Slashing . | . . . . . Piercing . | . . . . . Sneak Attacks . | . . . . . Combat Hostiles . | . . . . . Follow-up Attacks . | . . . . . Damage Inflicted 1019 | 49 273 486 . 211 Guns 599 | 49 237 182 . 131 Cannons 334 | . . 254 . 80 Explosions 86 | . 36 50 . . Melee . | . . . . . Ramming . | . . . . . Kinetic 254 | . . 254 . . Thermal 355 | 25 149 50 . 131 Explosive . | . . . . . Electromagnetic 410 | 24 124 182 . 80 Impact . | . . . . . Slashing . | . . . . . Piercing . | . . . . . Highest Corruption . | . . . . . Average Corruption . | . . . . . Corruption Purged . | . . . . . Corruption Blocked . | . . . . . Overload Shots . | . . . . . Overflow Damage . | . . . . . Projectiles . | . . . . . Explosions . | . . . . . Melee . | . . . . . Knockbacks 5 | . . 5 . . Impact . | . . . . . Kinetic 5 | . . 5 . . Secondary . | . . . . . Self-Inflicted Damage 23 | . 23 . . . Shots 1 | . 1 . . . Rammed . | . . . . . Targets Rammed . | . . . . . Kicked . | . . . . . Crushed . | . . . . . Highest Temperature 180 | 90 180 . . 60 Average Temperature 55 | 47 67 . . 25 Received Heat Transfer 375 | . 42 267 . 66 Siege Activations . | . . . . . Martial Activations . | . . . . . Shielding Activations . | . . . . . Robots Disrupted . | . . . . . Combat Hostiles . | . . . . . Robots Corrupted . | . . . . . Combat Hostiles . | . . . . . Parts Fried 1 | . . 1 . . Impact Corruptions . | . . . . . Robots Melted . | . . . . . Combat Hostiles . | . . . . . Parts Melted 1 | . . . . 1 Heat Transferred 840 | 148 383 50 . 259 Parts Sabotaged . | . . . . . Parts Stolen . | . . . . . Parts Stripped . | . . . . . Power Chain Reactions 2 | . 1 1 . . Alert | -11 -10 -10 -9 -7 ------- Run | Yrd Mat Sub Rec Fac Maximum Alert Level . | . . . . . Low Security (%) 100 | 100 100 . 100 100 Level 1 . | . . . . . Level 2 . | . . . . . Level 3 . | . . . . . Level 4 . | . . . . . Level 5 . | . . . . . High Security . | . . . . . Max Security . | . . . . . Peak Influence 81 | 5 81 . . 45 Initial . | . . . . . Average 10 | . 39 . . 4 Influence Increases 241 | 5 131 55 . 50 Destroy 0b10 Robot/C 100 | . 60 40 . . Destroy 0b10 Robot/NC 20 | 5 10 . . 5 Destroy Leader 12 | . 12 . . . Successful Hack 15 | . 15 . . . Destroy Structure 4 | . 4 . . . Lose Combat Pursuer 90 | . 30 15 . 45 Influence Decreases 241 | 5 63 123 . 50 Entered New Map 33 | . . 33 . . Time Decay 173 | 5 63 55 . 50 Lost Part 35 | . . 35 . . Squads Dispatched 3 | . 1 . . 2 Investigation . | . . . . . Extermination . | . . . . . Reinforcement 1 | . 1 . . . Assault . | . . . . . Garrison 2 | . . . . 2 Intercept . | . . . . . Searches Triggered . | . . . . . Construction Impeded . | . . . . . Haulers Reinforced . | . . . . . Active Scanning Responses . | . . . . . Cargo Convoy Interrupts . | . . . . . Stealth | -11 -10 -10 -9 -7 --------- Run | Yrd Mat Sub Rec Fac Distress Signals 1 | . 1 . . . Communications Jammed . | . . . . . Distress Signals . | . . . . . Times Spotted 24 | . 5 13 2 4 Peak Tracking Total 6 | . 3 6 2 4 Tactical Retreats 4 | . 1 1 . 2 ECM-based Alert Blocks 1 | . . . . 1 Traps | -11 -10 -10 -9 -7 ------- Run | Yrd Mat Sub Rec Fac Traps Triggered 3 | . . 3 . . Indirectly . | . . . . . Trap Hack Attempts . | . . . . . Triggered . | . . . . . Disarmed . | . . . . . Reprogrammed . | . . . . . Reused . | . . . . . Traps Extracted . | . . . . . Installed . | . . . . . Triggered . | . . . . . Machines | -11 -10 -10 -9 -7 ---------- Run | Yrd Mat Sub Rec Fac Machines Disabled . | . . . . . Max in Single Turn . | . . . . . Machines Repaired . | . . . . . Machines Dismantled . | . . . . . Machines Sabotaged . | . . . . . Overloaded Fab Kills . | . . . . . Hacking | -11 -10 -10 -9 -7 --------- Run | Yrd Mat Sub Rec Fac Machines Accessed 4 | . 2 . 1 1 Terminals 3 | . 2 . 1 . Fabricators . | . . . . . Repair Stations . | . . . . . Recycling Units . | . . . . . Scanalyzers . | . . . . . Garrison Access 1 | . . . . 1 Total Hacks 6 | . 4 . 1 1 Successful 4 | . 3 . 1 . Failed 2 | . 1 . . 1 Catastrophic . | . . . . . Database Lockouts . | . . . . . Manual . | . . . . . Terminals 5 | . 4 . 1 . Fabricators . | . . . . . Repair Stations . | . . . . . Recycling Units . | . . . . . Scanalyzers . | . . . . . Garrison Access 1 | . . . . 1 Terminal Hacks 4 | . 3 . 1 . Level Access Points 1 | . 1 . . . Surveillance Status 1 | . 1 . . . Hauler Manifests 2 | . 1 . 1 . Fabricator Hacks . | . . . . . Repair Station Hacks . | . . . . . Recycling Unit Hacks . | . . . . . Scanalyzer . | . . . . . Garrison Access Hacks . | . . . . . Unauthorized Hacks . | . . . . . Terminals . | . . . . . Fabricators . | . . . . . Repair Stations . | . . . . . Recycling Units . | . . . . . Scanalyzers . | . . . . . Garrison Access . | . . . . . Data Cores Recovered . | . . . . . Used . | . . . . . Hacking Detections 3 | . 2 . . 1 Full Trace Events . | . . . . . Feedback Events . | . . . . . Feedback Blocked . | . . . . . Robot Schematics Acquired . | . . . . . Robots Built . | . . . . . Authchips . | . . . . . Time . | . . . . . Total Robot Build Rating . | . . . . . Part Schematics Acquired . | . . . . . Parts Built . | . . . . . Authchips . | . . . . . Time . | . . . . . Total Part Build Rating . | . . . . . Part Studies Acquired . | . . . . . Parts Repaired . | . . . . . Time . | . . . . . Parts Recycled . | . . . . . Recycled Matter . | . . . . . Retrieved Matter . | . . . . . Retrieved Components . | . . . . . Parts Scanalyzed . | . . . . . Part Schematics Acquired . | . . . . . Parts Damaged . | . . . . . Bothacking | -11 -10 -10 -9 -7 ------------ Run | Yrd Mat Sub Rec Fac Used RIF Installer . | . . . . . Robots Hacked . | . . . . . Non-combat . | . . . . . Combat . | . . . . . Robot Hacks Applied . | . . . . . Relay Couplers Released . | . . . . . Fabnet Peak Effective % . | . . . . . Robots Rewired . | . . . . . Allies Hacked . | . . . . . Hacks Repelled . | . . . . . Allies | -11 -10 -10 -9 -7 -------- Run | Yrd Mat Sub Rec Fac Total Allies . | . . . . . Largest Group . | . . . . . Highest-Rated Group . | . . . . . Highest-Rated Ally . | . . . . . Total Orders . | . . . . . Ally Attacks . | . . . . . Total Damage . | . . . . . Kills . | . . . . . Allies Corrupted . | . . . . . Allies Melted . | . . . . . Intel | -11 -10 -10 -9 -7 ------- Run | Yrd Mat Sub Rec Fac Active Infowar (turns) 409 | 27 178 93 . 111 Seismic 298 | 27 178 93 . . ECM 111 | . . . . 111 Robot Analysis Total . | . . . . . Derelict Logs Recovered 2 | . . 2 . . Drone Launches . | . . . . . Drone Recoveries . | . . . . . Exploration | -11 -10 -10 -9 -7 ------------- Run | Yrd Mat Sub Rec Fac Turns Passed 2190 | 84 178 1309 169 450 Spaces Moved 1839 | 56 108 979 263 433 Core 466 | 13 . 4 263 186 Treads . | . . . . . Legs 1126 | 43 108 975 . . Wheels 247 | . . . . 247 Hover . | . . . . . Flight . | . . . . . Fastest Speed 50 | 50 120 100 50 50 Average Speed 104 | 110 120 120 62 88 Slowest Speed 400 | 120 120 190 100 400 Overloaded Moves . | . . . . . Propulsion Burnouts . | . . . . . Robots Hopped . | . . . . . Potential Cave-ins . | . . . . . Cave-ins Triggered . | . . . . . Exploration Rate (%) 29 | 4 15 62 58 10 Regions Visited 4 Branch Regions 2 Pre-discovered Areas . | . . . . . Known Exits Taken . | . . . . . Unknown Exits Taken 4 | 1 1 1 1 . Scrap Searched 5 | . . 5 . . Spaces Dug . | . . . . . Terrain Destroyed 6 | . 4 2 . . Melee . | . . . . . Projectile 2 | . . 2 . . AOE 4 | . 4 . . . Terrain Rammed . | . . . . . Walls Destroyed . | . . . . . Machines Disabled . | . . . . . Actions | -11 -10 -10 -9 -7 --------- Run | Yrd Mat Sub Rec Fac Total 1997 | 68 134 1044 268 483 Wait 57 | 2 12 11 . 32 Move 1835 | 55 107 978 262 433 Hop . | . . . . . Pick Up 6 | 1 4 . . 1 Fast Attach 19 | 7 . 4 . 8 Attach 3 | . . 3 . . Detach 3 | . . 2 . 1 Swap 3 | . . 3 . . Drop 6 | . . 1 5 . Fire 64 | 3 11 42 . 8 Melee . | . . . . . Ram . | . . . . . Kick . | . . . . . Crush . | . . . . . Escape Stasis . | . . . . . Rewire 1 | . . . 1 . Trap . | . . . . . Miscellaneous . | . . . . . Route ------- -11/Scrapyard -10/Materials (discovered 4 exits: Mat x3 / [*Sub]) -10/Subcaves (discovered 2 exits: Mat / *Rec) -9/Recycling -7/Factory History --------- Turn | Location | Event 12 | -11/Scrapyard | Discovered new exit (range 13) 85 | -11/Scrapyard | Entered Materials 94 | -10/Materials | Identified exit to Materials 249 | -10/Materials | Discovered new exit (range 6) 263 | -10/Materials | Entered Subcaves 314 | -10/Subcaves | Build established: Mutant 785 | -10/Subcaves | Disturbed a concealed Subdweller 898 | -10/Subcaves | A swath of the cavern ceiling suddenly collapsed 1123 | -10/Subcaves | Shifting Twisted Machinery released Sub. Laser 1124 | -10/Subcaves | Shifting Twisted Machinery released Piercing Trap 1257 | -10/Subcaves | Identified exit to Materials 1388 | -10/Subcaves | Shifting Twisted Machinery released Sub. Machine Gun 1408 | -10/Subcaves | Shifting Twisted Machinery released Flamer 1545 | -10/Subcaves | Discovered new exit (range 14) 1547 | -10/Subcaves | Learned 2 Materials zone layouts 1555 | -10/Subcaves | Core integrity fell below 50% 1569 | -10/Subcaves | Core integrity fell below 20% 1572 | -10/Subcaves | Entered Recycling 1599 | -9/Recycling | Lost 6 parts (1p2n3w) 1641 | -9/Recycling | Released all parts (3) 1734 | -9/Recycling | Discovered new exit (range 15) 1741 | -9/Recycling | Entered Factory 1741 | -7/Factory | Evolved 6 slots: Power x1, Propulsion x2, Utility x1, Weapon x2 2191 | -7/Factory | Self-destructed Last Messages --------------- 01899_ Acquired Recalibrator. 01934_ Wheel melted. 01934_ T-07 Excavator destroyed. 01942_ Acquired 24 matter. 01944_ Acquired Lgt. Ion Engine. 01989_ Acquired Imp. EM Pulse Cannon. 02053_ Acquired Mic. Nuclear Core. 02129_ Acquired Adv. Weight Redist. System. 02141_ Connecting with Garrison Access... 02141_ Current location identified: Factory 02147_ ALERT: All DSF locations entering lockdown mode. 02148_ Penetrated by Slug. 02151_ Slug penetrates Wall. 02152_ Y-54 Guardian emerges from the garrison. 02155_ Penetrated by Slug. 02163_ U-05 Engineer builds a Door. 02176_ Slug penetrates Wall. 02180_ Y-54 Guardian IFF system glitched. 02181_ Slug penetrates Wall. 02190_ Mic. Nuclear Core destroyed. Map ----- +----------------------------------------------------+ | | | | | | | | | ?????????????????????????????????????????????????? | | ?????????????????????????########????????????????? | | ##??????????###??????????# #????????????????? | | ????????? #??????????# = #????????????????? | | ??????? ############ #????????????????? | | ?????? # + ]] #????????????????? | | ####### # # ]] #????????????????? | | # ## # " # ]] #????????????????? | | # ## "" ##+########????????????????? | | # + G ## #????????????????? | | # #### "" + """ #????????????????? | | # #??# " # """ #????????????????? | | # #??# # """ #????????????????? | | # #??# + #????????????????? | | # #??# ! # """ #????????????????? | | # ########### # """ #????????????????? | | ##+#### # # """ #????????????????? | | + """# # #????????????????? | | #+## #### """# #############?????????????? | | # #??# """# Y# #?????????????? | | " # #??#! + Y #?????????????? | | " # #??# """# # @ """"" #?????????????? | | " # #??# """# # """"" #?????????????? | | " # #??# """# # """ #?????????????? | | # #??# # # #?????????????? | | # #??########## # """T""" #?????????????? | | # #???????????# #############?????????????? | | "" # #???????????# #?????????????????????????? | | "" # #???????????# #?????????????????????????? | | " # #???????????# #?????????????????????????? | | #### #???????????# #?????????????????????????? | | ?### ###????????? ?????????????????????????? | | ?# ########?? ?????????????????????????? | | ?# ?#????????????????????????? | | ?# " ??????????????????????????? | | ?# ???????????????????????????? | | ?# ########## ????????????????????????????? | | ?#######?????????????????????????????????????????? | | ?????????????????????????????????????????????????? | | ?????????????????????????????????????????????????? | | ?????????????????????????????????????????????????? | | ?????????????????????????????????????????????????? | | ?????????????????????????????????????????????????? | | ?????????????????????????????????????????????????? | | ?????????????????????????????????????????????????? | | ?????????????????????????????????????????????????? | +----------------------------------------------------+ Best States ------------- Heat Dissipation 34 Energy Generation 25 Energy Capacity 250 Matter Stores 300 Matter Capacity 300 Sight Range 16 Terrain Scan Density 10 ECM Strength 2 Evasion (%) 55 Offensive Hacking 11 Item Schematics ----------------- None Robot Schematics ------------------ None Fabricated ------------ Nothing Repaired ---------- Nothing Studied --------- None Alien Tech Used ----------------- None Achievements -------------- None Challenges ------------ None Game ------ Seed MassVortexScanner Manual? 0 Play Time 00:24:00 Cumulative 60.0 hours Start 2026.03.11 @ 05:23:18 End 2026.03.13 @ 19:08:34 Sessions 5 Manual Loads 0 Difficulty Rogue Special Mode None Game No. 231 Rogue 231 Adventurer 0 Explorer 0 Win Type - Total 0 Types 0/0/0/0/0/0/0/0/0/0 Lore% 28 Gallery% 22 Achievement% 17 Wizard Run 0 Options --------- Layout 0 ASCII 1 Keyboard 1 Movement Numpad Keybinds 1 Fullscreen 1 Font 18/X11 Map View 76x50 Zoom Use 0% Tactical HUD 1 Map Filters NONE Filters NONE Steam 1 RUN: 4655d2ec-e0b1-463a-bdaa-68f3db210f0b